fUSD/lending_fUSD_20240122
["ID","MTS","AMOUNT","RATE_DAILY","PERIOD"]
[312528175,1705942333299,-500.0,0.0005726,120]
[312528176,1705942333308,-618.43,0.0005726,120]
[312528177,1705942333317,-296.73909892,0.0005726,120]
[312528178,1705942333326,-500.0,0.0005726,120]
[312528179,1705942333335,-503.21,0.0005726,120]
[312528180,1705942333345,-220.77813512,0.0005726,120]
[312528181,1705942333354,-500.0,0.0005726,120]
[312528182,1705942333364,-548.09,0.0005726,120]
[312528183,1705942333373,-500.0,0.0005726,120]
[312528184,1705942333382,-500.0,0.0005726,120]
[312528185,1705942333392,-500.0,0.0005726,120]
[312528186,1705942333401,-500.0,0.0005726,120]
[312528187,1705942333412,-500.0,0.0005726,120]
[312528188,1705942333423,-635.0,0.0005726,120]
[312528189,1705942333432,-500.0,0.0005726,120]
[312528190,1705942333442,-826.62,0.0005726,120]
[312528191,1705942333451,-593.99,0.0005726,120]
[312528192,1705942333461,-500.0,0.0005726,120]
[312528193,1705942333470,-500.0,0.0005726,120]
[312528194,1705942333479,-500.0,0.0005726,120]
[312528195,1705942333490,-503.77,0.0005726,120]
[312528196,1705942333501,-500.0,0.0005726,120]
[312528197,1705942333514,-584.08,0.0005726,120]
[312528198,1705942333524,-500.0,0.0005726,120]
[312528199,1705942333533,-1733.58,0.0005726,120]
[312528200,1705942333543,-500.0,0.0005726,120]
[312528201,1705942333553,-500.0,0.0005726,120]
[312528202,1705942333563,-500.0,0.0005726,120]
[312528203,1705942333572,-500.0,0.0005726,120]
[312528204,1705942333582,-538.86,0.0005726,120]
[312528205,1705942333591,-435.79835858,0.0005726,120]
[312528206,1705942333600,-500.0,0.0005726,120]
[312528207,1705942333610,-517.5,0.0005726,120]
[312528208,1705942333619,-873.69,0.0005726,120]
[312528209,1705942333630,-500.0,0.0005726,120]
[312528210,1705942333639,-557.04,0.0005726,120]
[312528211,1705942333649,-500.0,0.0005726,120]
[312528212,1705942333659,-500.0,0.0005726,120]
[312528213,1705942333668,-573.86623722,0.0005726,120]
[312528214,1705942333679,-500.0,0.0005726,120]
[312528215,1705942333689,-500.0,0.0005726,120]
[312528216,1705942333699,-727.32,0.0005726,120]
[312528217,1705942333709,-500.0,0.0005726,120]
[312528218,1705942333717,-292.82953004,0.0005726,120]
[312528219,1705942333727,-500.0,0.0005726,120]
[312528220,1705942333737,-791.21,0.0005726,120]
[312528221,1705942333747,-500.0,0.0005726,120]
[312528222,1705942333758,-903.36,0.0005726,120]
[312528223,1705942333773,-1283.28,0.0005726,120]
[312528224,1705942333784,-500.0,0.0005726,120]
[312528225,1705942333794,-594.65,0.0005726,120]
[312528226,1705942333805,-617.64,0.0005726,120]
[312528227,1705942333814,-720.46,0.0005726,120]
[312528228,1705942333824,-986.04,0.0005726,120]
[312528229,1705942333834,-723.96,0.0005726,120]
[312528230,1705942333844,-985.43,0.0005726,120]
[312528231,1705942333853,-519.85,0.0005726,120]
[312528232,1705942333863,-500.0,0.0005726,120]
[312528233,1705942333873,-500.0,0.0005726,120]
[312528234,1705942333883,-1096.6,0.0005726,120]
[312528235,1705942333893,-500.0,0.0005726,120]
[312528236,1705942333903,-1001.01,0.0005726,120]
[312528237,1705942333915,-500.0,0.0005726,120]
[312528238,1705942333924,-500.0,0.0005726,120]
[312528239,1705942333934,-500.0,0.0005726,120]
[312528240,1705942333944,-500.0,0.0005726,2]
[312528241,1705942333954,-748.21,0.0005726,120]
[312528242,1705942333963,-601.52,0.0005726,120]
[312528243,1705942333973,-757.21,0.0005726,120]
[312528244,1705942333983,-500.0,0.0005726,120]
[312528245,1705942333993,-500.0,0.0005726,2]
[312528246,1705942334003,-578.69,0.0005726,120]
[312528247,1705942334012,-690.74,0.0005726,120]
[312528248,1705942334022,-500.0,0.0005726,120]
[312528249,1705942334032,-655.68,0.0005726,120]
[312528250,1705942334042,-815.64,0.0005726,120]
[312528251,1705942334052,-566.63103369,0.0005726,120]
[312528252,1705942334061,-535.82,0.0005726,120]
[312528253,1705942334071,-987.66,0.0005726,120]
[312528254,1705942334081,-500.0,0.0005726,120]
[312528255,1705942334090,-634.54589197,0.0005726,120]
[312528256,1705942334100,-1207.6,0.0005726,120]
[312528257,1705942334111,-799.27,0.0005726,120]
[312528258,1705942334121,-956.9,0.0005726,120]
[312528259,1705942334130,-509.48,0.0005726,120]
[312528260,1705942334140,-1236.74,0.0005726,120]
[312528261,1705942334150,-500.0,0.0005726,120]
[312528262,1705942334162,-794.46,0.0005726,120]
[312528263,1705942334173,-676.21,0.0005726,120]
[312528264,1705942334183,-500.0,0.0005726,120]
[312528265,1705942334193,-784.83,0.0005726,120]
[312528266,1705942334203,-1206.35,0.0005726,120]
[312528267,1705942334213,-940.83,0.0005726,120]
[312528268,1705942334223,-500.0,0.0005726,7]
[312528269,1705942334234,-1325.76,0.0005726,120]
[312528270,1705942334244,-766.88,0.0005726,120]
[312528271,1705942334254,-500.0,0.0005726,120]
[312528272,1705942334264,-882.54,0.0005726,2]
[312528273,1705942334274,-1098.14,0.0005726,120]
[312528274,1705942334283,-1272.77,0.0005726,120]
[312528275,1705942334293,-855.01,0.0005726,120]
[312528276,1705942334303,-1433.57,0.0005726,120]
[312528277,1705942334313,-500.0,0.0005726,120]
[312528278,1705942334322,-500.0,0.0005726,120]
[312528279,1705942334333,-1004.38,0.0005726,120]
[312528280,1705942334343,-613.63,0.0005726,120]
[312528281,1705942334353,-500.0,0.0005726,120]
[312528282,1705942334363,-511.59,0.0005726,120]
[312528283,1705942334373,-851.13,0.0005726,120]
[312528284,1705942334383,-933.89,0.0005726,120]
[312528285,1705942334393,-711.76,0.0005726,120]
[312528286,1705942334404,-572.52,0.0005726,120]
[312528287,1705942334414,-574.2343095,0.0005726,120]
[312528288,1705942334424,-773.03,0.0005726,120]
[312528289,1705942334434,-762.64,0.0005726,120]
[312528290,1705942334445,-1058.65,0.0005726,120]
[312528291,1705942334454,-500.0,0.0005726,120]
[312528292,1705942334465,-509.59,0.0005726,120]
[312528293,1705942334476,-1002.76,0.0005726,120]
[312528294,1705942334487,-665.88,0.0005726,120]
[312528295,1705942334500,-500.0,0.0005726,120]
[312528296,1705942334510,-827.04,0.0005726,120]
[312528297,1705942334521,-500.0,0.0005726,120]
[312528298,1705942334531,-904.02,0.0005726,120]
[312528299,1705942334542,-704.08,0.0005726,120]
[312528300,1705942334552,-787.53,0.0005726,120]
[312528301,1705942334563,-1047.73,0.0005726,120]
[312528302,1705942334574,-872.35,0.0005726,120]
[312528303,1705942334586,-500.0,0.0005726,120]
[312528304,1705942334596,-500.0,0.0005726,120]
[312528305,1705942334606,-973.07,0.0005726,120]
[312528306,1705942334615,-1055.58,0.0005726,120]
[312528307,1705942334626,-646.89799834,0.0005726,120]
[312528308,1705942334636,-500.0,0.0005726,120]
[312528309,1705942334647,-592.41,0.0005726,120]
[312528310,1705942334660,-500.0,0.0005726,120]
[312528311,1705942334670,-1284.43,0.0005726,120]
[312528312,1705942334680,-644.22918747,0.0005726,120]
[312528313,1705942334691,-1139.91,0.0005726,120]
[312528314,1705942334700,-500.0,0.0005726,120]
[312528315,1705942334710,-562.17,0.0005726,120]
[312528316,1705942334720,-539.03,0.0005726,120]
[312528317,1705942334730,-500.0,0.0005726,120]
[312528318,1705942334740,-1374.87,0.0005726,120]
[312528319,1705942334749,-750.36,0.0005726,120]
[312528320,1705942334759,-579.03,0.0005726,120]
[312528321,1705942334770,-711.43,0.0005726,120]
[312528322,1705942334779,-500.0,0.0005726,120]
[312528323,1705942334789,-1076.02,0.0005726,120]
[312528324,1705942334799,-500.0,0.0005726,120]
[312528325,1705942334809,-1080.86,0.0005726,120]
[312528326,1705942334819,-559.5,0.0005726,120]
[312528327,1705942334829,-500.0,0.0005726,120]
[312528328,1705942334839,-1198.92,0.0005726,120]
[312528329,1705942334851,-546.17,0.0005726,120]
[312528330,1705942334861,-1032.79,0.0005726,120]
[312528331,1705942335119,-912.89,0.0005726,120]
[312528332,1705942335129,-1291.04,0.0005726,120]
[312528333,1705942335139,-719.62,0.0005726,120]
[312528334,1705942335149,-1228.18,0.0005726,120]
[312528335,1705942335160,-500.0,0.0005726,120]
[312528336,1705942335171,-500.0,0.0005726,120]
[312528337,1705942335181,-1064.71,0.0005726,120]
[312528338,1705942335191,-933.5,0.0005726,120]
[312528339,1705942335201,-500.0,0.0005726,120]
[312528340,1705942335211,-500.0,0.0005726,120]
[312528341,1705942335221,-1092.85,0.0005726,120]
[312528342,1705942335230,-512.46,0.0005726,120]
[312528343,1705942335240,-1122.93,0.0005726,120]
[312528344,1705942335249,-834.87,0.0005726,120]
[312528345,1705942335260,-1098.97,0.0005726,120]
[312528346,1705942335269,-500.0,0.0005726,120]
[312528347,1705942335279,-500.0,0.0005726,120]
[312528348,1705942335288,-1124.27,0.0005726,120]
[312528349,1705942335297,-526.95059491,0.0005726,120]
[312528350,1705942335307,-548.35,0.0005726,120]
[312528351,1705942335317,-676.24,0.0005726,120]
[312528352,1705942335326,-1234.09,0.0005726,120]
[312528353,1705942335336,-1183.29,0.0005726,120]
[312528354,1705942335346,-500.0,0.0005726,120]
[312528355,1705942335356,-500.0,0.0005726,120]
[312528356,1705942335365,-942.51,0.0005726,120]
[312528357,1705942335375,-539.8,0.0005726,120]
[312528358,1705942335385,-500.0,0.0005726,120]
[312528359,1705942335394,-1200.35,0.0005726,120]
[312528360,1705942335404,-995.47,0.0005726,120]
[312528361,1705942335416,-1034.97,0.0005726,120]
[312528362,1705942335425,-444.54097799,0.0005726,120]
[312528363,1705942335435,-500.0,0.0005726,120]
[312528364,1705942335445,-874.88,0.0005726,120]
[312528365,1705942335454,-507.23,0.0005726,120]
[312528366,1705942335463,-562.05,0.0005726,120]
[312528367,1705942335472,-514.2,0.0005726,120]
[312528368,1705942335483,-500.0,0.0005726,120]
[312528369,1705942335494,-1038.58,0.0005726,120]
[312528370,1705942335505,-1546.51,0.0005726,2]
[312528371,1705942335515,-1166.09,0.0005726,120]
[312528372,1705942335524,-552.78,0.0005726,120]
[312528373,1705942335534,-916.75,0.0005726,120]
[312528374,1705942335544,-569.87722192,0.0005726,120]
[312528375,1705942335554,-825.25,0.0005726,120]
[312528376,1705942335564,-731.13,0.0005726,120]
[312528377,1705942335573,-703.42,0.0005726,120]
[312528378,1705942335584,-597.16,0.0005726,120]
[312528379,1705942335594,-692.04,0.0005726,120]
[312528380,1705942335603,-609.93,0.0005726,120]
[312528381,1705942335613,-500.0,0.0005726,120]
[312528382,1705942335623,-604.43,0.0005726,120]
[312528383,1705942335633,-668.81,0.0005726,120]
[312528384,1705942335643,-435.51,0.0005726,120]
[312528385,1705942335653,-820.72,0.0005726,120]
[312528386,1705942335664,-500.0,0.0005726,2]
[312528387,1705942335674,-510.66,0.0005726,120]
[312528388,1705942335683,-1104.92,0.0005726,120]
[312528389,1705942335692,-541.63328441,0.0005726,120]
[312528390,1705942335702,-500.0,0.0005726,120]
[312528391,1705942335712,-150.0,0.0005726,14]
[312528392,1705942335721,-611.57,0.0005726,120]
[312528393,1705942335730,-500.0,0.0005726,120]
[312528394,1705942335740,-705.3,0.0005726,120]
[312528395,1705942335750,-782.46,0.0005726,120]
[312528396,1705942335759,-1193.75,0.0005726,120]
[312528397,1705942335768,-500.0,0.0005726,120]
[312528398,1705942335778,-841.24,0.0005726,120]
[312528399,1705942335787,-774.06,0.0005726,120]
[312528400,1705942335797,-500.0,0.0005726,120]
[312528401,1705942335806,-706.09,0.0005726,120]
[312528402,1705942335815,-1049.13,0.0005726,120]
[312528403,1705942335825,-500.0,0.0005726,120]
[312528404,1705942335835,-722.39,0.0005726,120]
[312528405,1705942335845,-500.0,0.0005726,120]
[312528406,1705942335854,-1098.78,0.0005726,120]
[312528407,1705942335864,-1040.43,0.0005726,120]
[312528408,1705942335874,-676.51,0.0005726,120]
[312528409,1705942335883,-800.29,0.0005726,120]
[312528410,1705942335892,-977.04,0.0005726,120]
[312528411,1705942335901,-622.73,0.0005726,120]
[312528412,1705942335911,-812.24,0.0005726,120]
[312528413,1705942335919,-940.44,0.0005726,120]
[312528414,1705942335929,-4003.53,0.0005726,120]
[312528415,1705942335938,-762.89,0.0005726,120]
[312528416,1705942335947,-543.32,0.0005726,120]
[312528417,1705942335957,-683.59,0.0005726,120]
[312528418,1705942335966,-735.35,0.0005726,120]
[312528419,1705942335975,-500.0,0.0005726,120]
[312528420,1705942335984,-7945.75,0.0005726,120]
[312528421,1705942335993,-752.98,0.0005726,120]
[312528422,1705942336003,-1119.94,0.0005726,120]
[312528423,1705942336012,-658.72,0.0005726,120]
[312528424,1705942336021,-590.12,0.0005726,120]
[312528425,1705942336031,-500.0,0.0005726,120]
[312528426,1705942336039,-500.0,0.0005726,120]
[312528427,1705942336050,-1197.36,0.0005726,120]
[312528428,1705942336059,-873.76,0.0005726,120]
[312528429,1705942336069,-536.78,0.0005726,120]
[312528430,1705942336079,-500.0,0.0005726,120]
[312528431,1705942336088,-1072.31,0.0005726,120]
[312528432,1705942336097,-500.0,0.0005726,120]
[312528433,1705942336106,-916.28,0.0005726,120]
[312528434,1705942336116,-500.0,0.0005726,120]
[312528435,1705942336125,-894.82,0.0005726,120]
[312528436,1705942336135,-563.54,0.0005726,120]
[312528437,1705942336144,-984.92,0.0005726,120]
[312528438,1705942336154,-2024.59,0.0005726,7]
[312528439,1705942336164,-500.0,0.0005726,120]
[312528440,1705942336173,-500.0,0.0005726,120]
[312528441,1705942336182,-873.84,0.0005726,120]
[312528442,1705942336192,-500.0,0.0005726,120]
[312528443,1705942336201,-1503.79,0.0005726,120]
[312528444,1705942336210,-500.0,0.0005726,120]
[312528445,1705942336220,-646.15,0.0005726,120]
[312528446,1705942336229,-781.35,0.0005726,120]
[312528447,1705942336239,-564.76,0.0005726,120]
[312528448,1705942336249,-519.13,0.0005726,120]
[312528449,1705942336259,-1095.74,0.0005726,120]
[312528450,1705942336269,-1291.13,0.0005726,120]
[312528451,1705942336279,-1064.36,0.0005726,120]
[312528452,1705942336289,-712.79,0.0005726,120]
[312528453,1705942336299,-736.14,0.0005726,120]
[312528454,1705942336308,-1311.07,0.0005726,120]
[312528455,1705942336318,-500.0,0.0005726,120]
[312528456,1705942336328,-616.38191228,0.0005726,120]
[312528457,1705942336338,-535.99155321,0.0005726,120]
[312528458,1705942336347,-500.0,0.0005726,120]
[312528459,1705942336357,-997.27,0.0005726,120]
[312528460,1705942336366,-1000.0,0.0005726,7]
[312528461,1705942336375,-879.87,0.0005726,120]
[312528462,1705942336385,-1180.26,0.0005726,30]
[312528463,1705942336394,-500.0,0.0005726,120]
[312528464,1705942336403,-500.0,0.0005726,120]
[312528465,1705942336416,-500.0,0.0005726,120]
[312528466,1705942336425,-1101.52,0.0005726,120]
[312528467,1705942336434,-1000.0,0.0005726,120]
[312528468,1705942336444,-533.57966996,0.0005726,120]
[312528469,1705942336453,-596.97,0.0005726,120]
[312528470,1705942336463,-500.0,0.0005726,120]
[312528471,1705942336472,-677.87,0.0005726,120]
[312528472,1705942336481,-500.0,0.0005726,30]
[312528473,1705942336498,-758.09,0.0005726,120]
[312528474,1705942336507,-500.0,0.0005726,120]
[312528475,1705942336516,-678.57,0.0005726,120]
[312528476,1705942336526,-500.0,0.0005726,7]
[312528477,1705942336537,-159.87231518,0.0005726,120]
[312528478,1705942336546,-764.95,0.0005726,120]
[312528479,1705942336556,-535.75,0.0005726,120]
[312528480,1705942336565,-1153.09,0.0005726,120]
[312528481,1705942336575,-768.51,0.0005726,120]
[312528482,1705942336585,-1045.19,0.0005726,120]
[312528483,1705942336594,-500.0,0.0005726,120]
[312528484,1705942336603,-876.25,0.0005726,120]
[312528485,1705942336613,-552.31,0.0005726,120]
[312528486,1705942336622,-697.88,0.0005726,120]
[312528487,1705942336632,-500.0,0.0005726,120]
[312528488,1705942336641,-619.89,0.0005726,120]
[312528489,1705942336650,-746.34,0.0005726,120]
[312528490,1705942336662,-503.91,0.0005726,120]
[312528491,1705942336671,-770.55,0.0005726,120]
[312528492,1705942336681,-515.99,0.0005726,120]
[312528493,1705942336690,-533.69,0.0005726,120]
[312528494,1705942336700,-1181.85,0.0005726,120]
[312528495,1705942336710,-500.0,0.0005726,120]
[312528496,1705942336719,-1727.31,0.0005726,120]
[312528497,1705942336729,-500.0,0.0005726,120]
[312528498,1705942336739,-500.0,0.0005726,120]
[312528499,1705942336748,-527.16562118,0.0005726,120]
[312528500,1705942336758,-953.83,0.0005726,120]
[312528501,1705942336767,-609.57,0.0005726,120]
[312528502,1705942336777,-500.0,0.0005726,120]
[312528503,1705942336787,-517.57,0.0005726,120]
[312528504,1705942336797,-759.29,0.0005726,120]
[312528505,1705942336806,-500.0,0.0005726,120]
[312528506,1705942336815,-1765.42,0.0005726,120]
[312528507,1705942336825,-945.78,0.0005726,120]
[312528508,1705942336834,-563.49,0.0005726,120]
[312528509,1705942336843,-2780.15,0.0005726,120]
[312528510,1705942336852,-1143.05,0.0005726,120]
[312528511,1705942336862,-739.81,0.0005726,120]
[312528512,1705942336872,-630.92,0.0005726,120]
[312528513,1705942336881,-500.0,0.0005726,120]
[312528514,1705942336891,-6946.56,0.0005726,120]
[312528515,1705942336900,-779.09,0.0005726,120]
[312528516,1705942336912,-729.29,0.0005726,120]
[312528517,1705942336921,-1112.59,0.0005726,120]
[312528518,1705942336931,-3649.41,0.0005726,120]
[312528519,1705942336941,-574.34855297,0.0005726,120]
[312528520,1705942336950,-500.0,0.0005726,120]
[312528521,1705942336960,-1830.13,0.0005726,120]
[312528522,1705942336969,-500.0,0.0005726,120]
[312528523,1705942336979,-8171.7,0.0005726,120]
[312528524,1705942336989,-598.39,0.0005726,120]
[312528525,1705942336998,-885.03,0.0005726,120]
[312528526,1705942337008,-552.57,0.0005726,120]
[312528527,1705942337017,-681.33,0.0005726,120]
[312528528,1705942337026,-2620.03,0.0005726,120]
[312528529,1705942337035,-385.6,0.0005726,120]
[312528530,1705942337045,-500.0,0.0005726,120]
[312528531,1705942337054,-674.46,0.0005726,120]
[312528532,1705942337064,-580.85,0.0005726,120]
[312528533,1705942337074,-722.83,0.0005726,120]
[312528534,1705942337083,-1767.29,0.0005726,120]
[312528535,1705942337092,-500.0,0.0005726,120]
[312528536,1705942337102,-717.86,0.0005726,120]
[312528537,1705942337111,-500.0,0.0005726,120]
[312528538,1705942337120,-1143.05,0.0005726,120]
[312528539,1705942337129,-500.0,0.0005726,120]
[312528540,1705942337138,-1133.33,0.0005726,120]
[312528541,1705942337147,-500.0,0.0005726,120]
[312528542,1705942337157,-540.86,0.0005726,120]
[312528543,1705942337168,-500.0,0.0005726,120]
[312528544,1705942337177,-500.0,0.0005726,120]
[312528545,1705942337187,-917.6,0.0005726,120]
[312528546,1705942337197,-5682.89,0.0005726,120]
[312528547,1705942337205,-774.42,0.0005726,120]
[312528548,1705942337215,-1451.88,0.0005726,120]
[312528549,1705942337224,-638.56,0.0005726,120]
[312528550,1705942337233,-2543.46,0.0005726,120]
[312528551,1705942337242,-2607.73,0.0005726,120]
[312528552,1705942337252,-610.88,0.0005726,120]
[312528553,1705942337261,-745.28,0.0005726,120]
[312528554,1705942337271,-231.29944898,0.0005726,120]
[312528555,1705942337280,-820.5,0.0005726,120]
[312528556,1705942337290,-1200.74,0.0005726,120]
[312528557,1705942337299,-1676.05,0.0005726,120]
[312528558,1705942337308,-3921.91,0.0005726,120]
[312528559,1705942337317,-1841.71,0.0005726,120]
[312528560,1705942337326,-1638.92,0.0005726,120]
[312528561,1705942337336,-500.0,0.0005726,120]
[312528562,1705942337346,-753.79,0.0005726,120]
[312528563,1705942337356,-983.65,0.0005726,120]
[312528564,1705942337365,-694.12,0.0005726,120]
[312528565,1705942337375,-760.03,0.0005726,120]
[312528566,1705942337385,-1023.91,0.0005726,120]
[312528567,1705942337395,-476.69286201,0.0005726,120]
[312528568,1705942337404,-1153.82,0.0005726,120]
[312528569,1705942337415,-500.0,0.0005726,120]
[312528570,1705942337511,-895.96,0.0005726,120]
[312528571,1705942337521,-500.0,0.0005726,120]
[312528572,1705942337531,-500.0,0.0005726,120]
[312528573,1705942337541,-630.13,0.0005726,120]
[312528574,1705942337550,-906.48,0.0005726,120]
[312528575,1705942337560,-500.0,0.0005726,120]
[312528576,1705942337570,-1028.29,0.0005726,120]
[312528577,1705942337580,-500.0,0.0005726,120]
[312528578,1705942337590,-649.02,0.0005726,120]
[312528579,1705942337599,-773.13,0.0005726,120]
[312528580,1705942337609,-500.0,0.0005726,120]
[312528581,1705942337618,-768.01,0.0005726,120]
[312528582,1705942337628,-1504.11,0.0005726,120]
[312528583,1705942337636,-778.2,0.0005726,120]
[312528584,1705942337646,-1829.78,0.0005726,120]
[312528585,1705942337655,-500.0,0.0005726,120]
[312528586,1705942337665,-543.66,0.0005726,120]
[312528587,1705942337675,-500.0,0.0005726,120]
[312528588,1705942337685,-950.19,0.0005726,120]
[312528589,1705942337694,-500.0,0.0005726,120]
[312528590,1705942337703,-505.05,0.0005726,120]
[312528591,1705942337713,-1074.68,0.0005726,120]
[312528592,1705942337722,-500.0,0.0005726,120]
[312528593,1705942337732,-1213.81,0.0005726,120]
[312528594,1705942337741,-823.2,0.0005726,120]
[312528595,1705942337750,-500.0,0.0005726,120]
[312528596,1705942337759,-1115.17,0.0005726,120]
[312528597,1705942337769,-500.0,0.0005726,120]
[312528598,1705942337778,-856.62,0.0005726,120]
[312528599,1705942337787,-682.86,0.0005726,120]
[312528600,1705942337797,-594.97,0.0005726,120]
[312528601,1705942337806,-500.0,0.0005726,120]
[312528602,1705942337815,-1646.87,0.0005726,120]
[312528603,1705942337824,-479.73738483,0.0005726,120]
[312528604,1705942337833,-822.11,0.0005726,120]
[312528605,1705942337842,-828.1,0.0005726,120]
[312528606,1705942337852,-580.05,0.0005726,120]
[312528607,1705942337861,-500.0,0.0005726,120]
[312528608,1705942337870,-2595.41,0.0005726,120]
[312528609,1705942337880,-500.0,0.0005726,120]
[312528610,1705942337889,-630.62,0.0005726,120]
[312528611,1705942337898,-930.18,0.0005726,120]
[312528612,1705942337906,-1073.28,0.0005726,120]
[312528613,1705942337916,-742.05,0.0005726,120]
[312528614,1705942337925,-678.49,0.0005726,120]
[312528615,1705942337934,-1590.69,0.0005726,120]
[312528616,1705942337943,-829.6,0.0005726,120]
[312528617,1705942337953,-617.27,0.0005726,120]
[312528618,1705942337962,-815.78,0.0005726,120]
[312528619,1705942337972,-1543.05,0.0005726,120]
[312528620,1705942337981,-500.0,0.0005726,120]
[312528621,1705942337990,-1475.16,0.0005726,120]
[312528622,1705942338000,-500.0,0.0005726,120]
[312528623,1705942338010,-714.16,0.0005726,120]
[312528624,1705942338019,-1006.24,0.0005726,120]
[312528625,1705942338028,-758.37,0.0005726,120]
[312528626,1705942338037,-1423.08,0.0005726,120]
[312528627,1705942338046,-765.85,0.0005726,120]
[312528628,1705942338055,-500.0,0.0005726,120]
[312528629,1705942338064,-567.09707833,0.0005726,120]
[312528630,1705942338073,-695.94,0.0005726,120]
[312528631,1705942338082,-500.0,0.0005726,120]
[312528632,1705942338091,-810.81,0.0005726,120]
[312528633,1705942338100,-569.61,0.0005726,120]
[312528634,1705942338109,-500.0,0.0005726,120]
[312528635,1705942338118,-500.0,0.0005726,120]
[312528636,1705942338128,-2137.13,0.0005726,120]
[312528637,1705942338137,-500.0,0.0005726,120]
[312528638,1705942338146,-1195.99,0.0005726,120]
[312528639,1705942338156,-735.82,0.0005726,120]
[312528640,1705942338167,-1168.02,0.0005726,120]
[312528641,1705942338176,-675.18,0.0005726,120]
[312528642,1705942338185,-723.21,0.0005726,120]
[312528643,1705942338195,-1962.3,0.0005726,120]
[312528644,1705942338204,-4343.32,0.0005726,120]
[312528645,1705942338213,-500.0,0.0005726,120]
[312528646,1705942338222,-809.05,0.0005726,120]
[312528647,1705942338231,-646.29,0.0005726,120]
[312528648,1705942338240,-1467.22,0.0005726,120]
[312528649,1705942338249,-759.96,0.0005726,120]
[312528650,1705942338258,-600.2,0.0005726,120]
[312528651,1705942338267,-500.0,0.0005726,120]
[312528652,1705942338275,-1223.32,0.0005726,120]
[312528653,1705942338285,-604.97,0.0005726,120]
[312528654,1705942338294,-1336.46,0.0005726,120]
[312528655,1705942338303,-776.65,0.0005726,120]
[312528656,1705942338312,-1097.52,0.0005726,120]
[312528657,1705942338322,-500.0,0.0005726,120]
[312528658,1705942338331,-3479.79,0.0005726,120]
[312528659,1705942338341,-941.86,0.0005726,120]
[312528660,1705942338350,-6928.17,0.0005726,5]
[312528661,1705942338360,-1530.05,0.0005726,120]
[312528662,1705942338369,-630.06,0.0005726,120]
[312528663,1705942338379,-500.0,0.0005726,120]
[312528664,1705942338388,-500.0,0.0005726,120]
[312528665,1705942338398,-631.92,0.0005726,120]
[312528666,1705942338407,-500.0,0.0005726,120]
[312528667,1705942338418,-581.13,0.0005726,120]
[312528668,1705942338427,-968.66,0.0005726,120]
[312528669,1705942338437,-729.77,0.0005726,120]
[312528670,1705942338446,-548.64,0.0005726,120]
[312528671,1705942338455,-1034.47,0.0005726,120]
[312528672,1705942338464,-1002.03,0.0005726,120]
[312528673,1705942338473,-663.93,0.0005726,120]
[312528674,1705942338482,-659.04,0.0005726,120]